bitfinex-derivatives/quotes_BTCF0:USTF0_20250614
["timestamp","ask_amount","ask_price","bid_price","bid_amount"]
[1749929771836,1.87876741,105000.0,104990.0,0.29412561]
[1749929773033,0.74377771,105000.0,104990.0,0.29412561]
[1749929773234,0.93881746,105000.0,104990.0,0.29412561]
[1749929773637,0.84958152,105000.0,104990.0,0.29412561]
[1749929776340,0.87958152,105000.0,104990.0,0.29412561]
[1749929776735,0.69430152,105000.0,104990.0,0.29412561]
[1749929776942,0.88954152,105000.0,104990.0,0.29412561]
[1749929777534,0.83954152,105000.0,104990.0,0.33840037]
[1749929777843,0.32430152,105000.0,104990.0,0.33840037]
[1749929778132,0.50954152,105000.0,104990.0,0.33840037]
[1749929778338,0.86954152,105000.0,104990.0,0.33840037]
[1749929778637,0.84954152,105000.0,104990.0,0.29412561]
[1749929779438,0.50954152,105000.0,104990.0,0.29412561]
[1749929780838,0.32430152,105000.0,104990.0,0.29412561]
[1749929781042,0.88954152,105000.0,104990.0,0.33840037]
[1749929781240,0.50954152,105000.0,104990.0,0.33840037]
[1749929781630,0.50954152,105000.0,104990.0,0.29412561]
[1749929782142,0.76279537,105000.0,104990.0,0.29412561]
[1749929782336,0.79329537,105000.0,104990.0,0.29412561]
[1749929782737,1.15329537,105000.0,104990.0,0.29412561]
[1749929783044,1.15329537,105000.0,104990.0,0.32562561]
[1749929783637,0.08627902,105000.0,104990.0,0.32562561]
[1749929783840,0.07651927,105000.0,104990.0,1.36395422]
[1749929784236,0.001,105000.0,104990.0,1.06210894]
[1749929784442,0.001,105000.0,104990.0,1.42290894]
[1749929784649,0.001,105000.0,104990.0,2.21752565]
[1749929785141,0.48084645,105010.0,104990.0,2.21752565]
[1749929785142,0.48084645,105010.0,105000.0,0.190406]
[1749929785343,0.85084645,105010.0,105000.0,0.65550741]
[1749929785645,0.38000285,105010.0,105000.0,1.09396126]
[1749929785845,0.37014324,105010.0,105000.0,1.09396126]
[1749929786036,0.37014324,105010.0,105000.0,0.73316126]
[1749929786241,0.37014324,105010.0,105000.0,0.84070741]
[1749929786744,0.31014324,105010.0,105000.0,1.45823602]
[1749929787238,0.07635361,105010.0,105000.0,1.45823602]
[1749929787439,0.07635361,105010.0,105000.0,1.46023602]
[1749929787638,0.07635361,105010.0,105000.0,1.14023602]
[1749929788937,0.07735361,105010.0,105000.0,1.14523602]
[1749929791147,0.26774141,105010.0,105000.0,1.92991602]
[1749929791448,0.07735361,105010.0,105000.0,1.92991602]
[1749929791646,0.07735361,105010.0,105000.0,1.67666217]
[1749929795246,0.26774141,105010.0,105000.0,1.67666217]
[1749929796250,0.52099526,105010.0,105000.0,0.70678217]
[1749929796443,0.55199526,105010.0,105000.0,1.27150741]
[1749929796748,0.61399526,105010.0,105000.0,1.27150741]
[1749929797142,0.36074141,105010.0,105000.0,1.27150741]
[1749929797346,0.36074141,105010.0,105000.0,1.63230741]
[1749929797552,0.36074141,105010.0,105000.0,1.67658217]
[1749929799554,0.36074141,105010.0,105000.0,0.70678217]
[1749929799755,0.36074141,105010.0,105000.0,1.25278217]
[1749929800357,0.95399526,105010.0,105000.0,0.28298217]
[1749929800552,0.95399526,105010.0,105000.0,0.23870741]
[1749929800748,1.31479526,105010.0,105000.0,0.04830141]
[1749929801248,1.4040312,105010.0,105000.0,0.007]
[1749929802253,1.4070312,105010.0,105000.0,0.005]
[1749929802453,0.190406,105000.0,104990.0,0.35185292]
[1749929802757,0.50585985,105000.0,104990.0,0.39317632]
[1749929804554,0.50685985,105000.0,104990.0,0.39417632]
[1749929805555,0.86765985,105000.0,104990.0,0.39417632]
[1749929805747,0.50685985,105000.0,104990.0,0.39417632]
[1749929806453,0.86765985,105000.0,104990.0,0.39417632]
[1749929806948,0.50685985,105000.0,104990.0,0.39417632]
[1749929807143,0.86765985,105000.0,104990.0,0.39417632]
[1749929807350,0.50685985,105000.0,104990.0,0.39417632]
[1749929815666,0.69205985,105000.0,104990.0,0.39417632]
[1749929816872,1.05285985,105000.0,104990.0,0.39417632]
[1749929817166,0.69205985,105000.0,104990.0,0.39417632]
[1749929817369,1.05285985,105000.0,104990.0,0.39417632]
[1749929818566,0.69205985,105000.0,104990.0,0.39417632]
[1749929818868,1.05285985,105000.0,104990.0,0.39417632]
[1749929819764,0.69205985,105000.0,104990.0,0.39417632]
[1749929820467,0.438806,105000.0,104990.0,0.42467632]
[1749929820864,0.438806,105000.0,104990.0,0.45647632]
[1749929821265,0.69205985,105000.0,104990.0,0.45647632]
[1749929821563,0.50685985,105000.0,104990.0,0.45647632]
[1749929822165,0.253606,105000.0,104990.0,0.45647632]
[1749929822665,0.223006,105000.0,104990.0,0.45647632]
[1749929823074,0.001,105000.0,104990.0,0.45647632]
[1749929823467,0.001,105000.0,104990.0,0.81727632]
[1749929823874,0.001,105000.0,104990.0,0.86155108]
[1749929825474,0.1914059,105000.0,104990.0,0.86155108]
[1749929825875,0.2220059,105000.0,104990.0,0.86155108]
[1749929826573,0.47525975,105000.0,104990.0,0.86155108]
[1749929827878,0.2220059,105000.0,104990.0,0.86155108]
[1749929828077,0.47525975,105000.0,104990.0,0.86155108]
[1749929830780,0.47525975,105000.0,104990.0,0.9205058]
[1749929835287,0.2220059,105000.0,104990.0,0.9205058]
[1749929835787,0.1914059,105000.0,104990.0,0.5597058]
[1749929835988,0.1914059,105000.0,104990.0,0.50075108]
[1749929838189,0.1914059,105000.0,104990.0,0.53235108]
[1749929838491,0.28064184,105000.0,104990.0,0.53235108]
[1749929838890,0.1914059,105000.0,104990.0,0.53235108]
[1749929839091,0.53389569,105000.0,104990.0,0.53235108]
[1749929839288,0.56544492,105000.0,104990.0,0.81715416]
[1749929839891,0.28064184,105000.0,104990.0,0.81715416]
[1749929840092,1.531048,105000.0,104990.0,0.08659816]
[1749929840393,1.531048,105000.0,104990.0,0.2327475]
[1749929840394,1.626348,105000.0,104990.0,0.2327475]
[1749929840783,1.53711206,105000.0,104990.0,0.2327475]
[1749929841593,1.66636737,105000.0,104990.0,0.2327475]
[1749929843189,1.34999095,105000.0,104990.0,0.2327475]
[1749929845388,1.34999095,105000.0,104990.0,0.0423234]
[1749929845792,1.34999095,105000.0,104990.0,0.2327475]
[1749929846601,1.09676121,105000.0,104990.0,0.2327475]
[1749929846790,1.34999095,105000.0,104990.0,0.2327475]
[1749929847691,1.35999095,105000.0,104990.0,0.2327475]
[1749929849295,2.14459095,105000.0,104990.0,0.2327475]
[1749929850393,1.26511095,105000.0,104990.0,0.2327475]
[1749929850599,1.55511095,105000.0,104990.0,0.2637475]
[1749929850799,1.55511095,105000.0,104990.0,0.3291475]
[1749929850800,0.95909095,105000.0,104990.0,0.3291475]
[1749929851099,1.89611095,105000.0,104990.0,0.3291475]
[1749929851400,2.21611095,105000.0,104990.0,0.3291475]
[1749929852302,1.89611095,105000.0,104990.0,0.3291475]
[1749929852503,2.25611095,105000.0,104990.0,0.3291475]
[1749929853303,1.89611095,105000.0,104990.0,0.3291475]
[1749929853509,1.92841095,105000.0,104990.0,0.3291475]
[1749929854099,2.27841095,105000.0,104990.0,0.3291475]
[1749929854604,2.23841095,105000.0,104990.0,0.3291475]
[1749929856900,1.87761095,105000.0,104990.0,0.3291475]
[1749929857106,0.90789095,105000.0,104990.0,0.3291475]
[1749929857299,1.84527095,105000.0,104990.0,0.3291475]
[1749929857899,1.84527095,105000.0,104990.0,0.6899475]
[1749929858101,0.40025531,105000.0,104990.0,0.94317724]
[1749929858406,0.001,105000.0,104990.0,1.58152672]
[1749929858606,0.001,105000.0,104990.0,1.23152672]
[1749929859309,1.33161861,105010.0,105000.0,0.1904059]
[1749929859510,1.68161861,105010.0,105000.0,0.6558293]
[1749929859810,0.84946051,105010.0,105000.0,0.6558293]
[1749929861001,0.93871582,105010.0,105000.0,0.6558293]
[1749929861403,0.93871582,105010.0,105000.0,0.6578293]
[1749929868215,0.84946051,105010.0,105000.0,0.6578293]
[1749929868403,0.84946051,105010.0,105000.0,0.6882293]
[1749929871115,1.10269025,105010.0,105000.0,0.6882293]
[1749929871314,1.16733819,105010.0,105000.0,0.6882293]
[1749929873420,1.16733819,105010.0,105000.0,0.6862293]
[1749929873614,1.16933819,105010.0,105000.0,0.6862293]
[1749929873806,1.19953819,105010.0,105000.0,0.6862293]
[1749929876618,1.19953819,105010.0,105000.0,0.70444366]
[1749929881417,0.74623129,105010.0,105000.0,0.98922134]
[1749929881624,0.07835361,105010.0,105000.0,1.3734961]
[1749929881824,0.07835361,105010.0,105000.0,1.65827378]
[1749929882017,0.07835361,105010.0,105000.0,1.3734961]
[1749929882414,0.07835361,105010.0,105000.0,1.66799608]
[1749929882621,0.00214324,105010.0,105000.0,1.68267604]
[1749929882927,0.00114324,105010.0,105000.0,1.77109303]
[1749929883112,0.00014324,105010.0,105000.0,1.77309303]
[1749929883310,0.00014324,105010.0,105000.0,1.45655616]
[1749929883627,0.00014324,105010.0,105000.0,1.45455616]
[1749929883928,0.00114324,105010.0,105000.0,1.46055616]
[1749929884524,0.00114324,105010.0,105000.0,1.37213917]
[1749929885321,0.00114324,105010.0,105000.0,1.46055616]
[1749929885530,0.00114324,105010.0,105000.0,1.45083386]
[1749929885724,0.00114324,105010.0,105000.0,1.36241687]
[1749929886333,0.00114324,105010.0,105000.0,1.45083386]
[1749929888228,0.00114324,105010.0,105000.0,1.20721411]
[1749929888526,0.00114324,105010.0,105000.0,1.4602326]
[1749929889318,0.00114324,105010.0,105000.0,2.2832326]
[1749929896530,0.00114324,105010.0,105000.0,2.27383386]
[1749929899935,0.00114324,105010.0,105000.0,2.28355988]
[1749929901739,0.00114324,105010.0,105000.0,2.27383386]
[1749929902240,0.00114324,105010.0,105000.0,3.24339386]
[1749929905042,0.00114324,105010.0,105000.0,2.27383386]
[1749929905234,0.00114324,105010.0,105000.0,3.21603005]
[1749929905437,0.03134324,105010.0,105000.0,3.21603005]
[1749929905833,0.03134324,105010.0,105000.0,3.50071945]
[1749929908947,0.00114324,105010.0,105000.0,3.50071945]
[1749929910542,0.00114324,105010.0,105000.0,3.41230246]
[1749929910953,0.00114324,105010.0,105000.0,3.50090733]
[1749929918752,0.03424324,105010.0,105000.0,3.50090733]
[1749929918950,0.03424324,105010.0,105000.0,2.24673793]
[1749929919150,0.31893264,105010.0,105000.0,2.78227793]
[1749929919353,0.38103264,105010.0,105000.0,2.78227793]
[1749929919755,0.09634324,105010.0,105000.0,2.78227793]
[1749929920263,0.09634324,105010.0,105000.0,3.15227793]
[1749929920963,0.09634324,105010.0,105000.0,3.18447793]
[1749929921265,0.09634324,105010.0,105000.0,3.21617793]
[1749929923360,0.09634324,105010.0,105000.0,3.24727793]
[1749929923564,0.03424324,105010.0,105000.0,3.24727793]
[1749929924267,0.03424324,105010.0,105000.0,3.24798165]
[1749929924457,0.00114324,105010.0,105000.0,2.59329225]
[1749929924651,0.00114324,105010.0,105000.0,2.86468738]
[1749929924963,0.00114324,105010.0,105000.0,3.42406618]
[1749929925764,0.00114324,105010.0,105000.0,3.07406618]
[1749929926062,0.00114324,105010.0,105000.0,3.43406618]
[1749929926861,0.00114324,105010.0,105000.0,3.45406618]
[1749929928065,0.00114324,105010.0,105000.0,3.14406618]
[1749929928262,0.00114324,105010.0,105000.0,3.43406618]
[1749929934064,0.00114324,105010.0,105000.0,2.61106618]
[1749929934371,0.00114324,105010.0,105000.0,2.72886455]
[1749929940865,0.08925531,105040.0,105000.0,2.63369065]
[1749929941165,0.0304,105040.0,105030.0,1.17964245]
[1749929941365,0.15335531,105050.0,105040.0,0.1903339]
[1749929941567,0.15335531,105050.0,105040.0,1.35559563]
[1749929941568,0.0644,105050.0,105040.0,1.35559563]
[1749929941763,0.0314,105050.0,105040.0,1.36559563]
[1749929941964,0.0314,105050.0,105040.0,1.42619563]
[1749929942169,0.0314,105050.0,105040.0,0.80150623]
[1749929942366,0.0314,105050.0,105040.0,0.71283876]
[1749929942670,0.0314,105050.0,105040.0,0.99752816]
[1749929942867,0.0621,105050.0,105040.0,1.29692816]
[1749929943068,0.0621,105050.0,105040.0,0.98116964]
[1749929943267,0.0621,105050.0,105040.0,0.94936252]
[1749929943570,0.0671,105050.0,105040.0,0.95036252]
[1749929944172,0.0711,105050.0,105040.0,0.95036252]
[1749929944370,0.33779841,105050.0,105040.0,0.95036252]
[1749929944570,0.14748261,105050.0,105040.0,0.89128478]
[1749929945770,0.14748261,105050.0,105040.0,0.6384025]
[1749929946071,0.14748261,105050.0,105040.0,0.89128478]
[1749929946574,0.14748261,105050.0,105040.0,1.27128478]
[1749929949367,0.33779841,105050.0,105040.0,1.0184025]
[1749929949566,0.33779841,105050.0,105040.0,0.59416102]
[1749929949775,0.95148069,105050.0,105040.0,0.42072102]
[1749929949970,0.98148069,105050.0,105040.0,0.42072102]
[1749929950468,0.98148069,105050.0,105040.0,0.23336102]
[1749929950672,0.98148069,105050.0,105040.0,0.3786939]
[1749929951370,0.72859841,105050.0,105040.0,0.3786939]
[1749929951572,0.98148069,105050.0,105040.0,0.3786939]
[1749929952572,0.98148069,105050.0,105040.0,0.1913339]
[1749929952768,0.72859841,105050.0,105040.0,0.1913339]
[1749929953072,0.98148069,105050.0,105040.0,0.1913339]
[1749929954970,0.61668069,105050.0,105040.0,0.1913339]
[1749929955171,0.97848069,105050.0,105040.0,0.1913339]
[1749929955774,0.35979841,105050.0,105040.0,0.1903339]
[1749929956075,0.30209831,105050.0,105040.0,0.80401618]
[1749929956274,0.30209831,105050.0,105040.0,0.86601618]
[1749929957163,0.33489831,105050.0,105040.0,0.6131339]
[1749929957369,0.33089831,105050.0,105040.0,0.6131339]
[1749929957673,0.33189831,105050.0,105040.0,0.6131339]
[1749929959074,0.33189831,105050.0,105040.0,0.5511339]
[1749929959877,0.33189831,105050.0,105040.0,0.1903339]
[1749929960976,0.33189831,105050.0,105040.0,0.23215831]
[1749929963584,0.58478059,105050.0,105040.0,0.23215831]
[1749929963986,0.69478059,105050.0,105040.0,0.23215831]
[1749929964376,0.44189831,105050.0,105040.0,0.23215831]
[1749929964577,0.69478059,105050.0,105040.0,0.23215831]
[1749929966180,0.44189831,105050.0,105040.0,0.23215831]
[1749929966881,0.69478059,105050.0,105040.0,0.23215831]
[1749929969487,0.7840359,105050.0,105040.0,0.23215831]
[1749929969982,0.69478059,105050.0,105040.0,0.04182441]
[1749929970183,1.4400359,105050.0,105040.0,0.04182441]
[1749929970688,2.2297959,105050.0,105040.0,0.04182441]
[1749929971185,2.2297959,105050.0,105040.0,0.23215831]
[1749929972291,2.2297959,105050.0,105040.0,0.1903339]
[1749929972886,1.4400359,105050.0,105040.0,0.1903339]
[1749929973087,1.8687959,105050.0,105040.0,0.1903339]
[1749929973288,1.8687959,105050.0,105040.0,0.23225749]
[1749929973289,2.2605959,105050.0,105040.0,0.23225749]
[1749929973489,1.8997959,105050.0,105040.0,0.23225749]
[1749929973888,2.2605959,105050.0,105040.0,0.23225749]
[1749929974891,1.3758359,105050.0,105040.0,0.23225749]
[1749929975090,1.31079362,105050.0,105040.0,0.23225749]
[1749929975290,2.06935362,105050.0,105040.0,0.23225749]
[1749929975590,1.27979362,105050.0,105040.0,0.32815749]
[1749929975791,1.24699362,105050.0,105040.0,0.32815749]
[1749929975992,0.93699362,105050.0,105040.0,0.32815749]
[1749929976988,0.57619362,105050.0,105040.0,0.32815749]
[1749929977192,0.93699362,105050.0,105040.0,0.32815749]
[1749929979494,0.57619362,105050.0,105040.0,0.32815749]
[1749929980294,0.95619362,105050.0,105040.0,0.32815749]
[1749929980995,0.57619362,105050.0,105040.0,0.32815749]
[1749929981498,0.63879362,105050.0,105040.0,0.32815749]
[1749929981895,0.8290759,105050.0,105040.0,0.32815749]
[1749929984396,0.8290759,105050.0,105040.0,0.68895749]
[1749929984898,0.57619362,105050.0,105040.0,0.68895749]
[1749929985998,0.57619362,105050.0,105040.0,0.32815749]
[1749929986697,0.57619362,105050.0,105040.0,0.68895749]
[1749929987394,0.8290759,105050.0,105040.0,0.68895749]
[1749929994004,0.50663792,105050.0,105040.0,0.98608125]
[1749929994307,0.07738261,105050.0,105040.0,1.04515899]
[1749929995103,0.07738261,105050.0,105040.0,1.40515899]
[1749929995403,0.07738261,105050.0,105040.0,1.04515899]
[1749929995603,0.07738261,105050.0,105040.0,1.04525624]
[1749929995903,0.07738261,105050.0,105040.0,1.05480613]
[1749929996403,0.07738261,105050.0,105040.0,1.04525624]
[1749929997002,0.07738261,105050.0,105040.0,1.83217624]
[1749929997895,0.07738261,105050.0,105040.0,2.15217624]
[1749930000307,0.26769911,105050.0,105040.0,1.83217624]
[1749930000803,0.07738261,105050.0,105040.0,1.83217624]
[1749930001004,0.07738261,105050.0,105040.0,1.7730985]
[1749930001408,0.07738261,105050.0,105040.0,2.1530985]
[1749930002104,0.07738261,105050.0,105040.0,2.0930985]
[1749930002605,0.07738261,105050.0,105040.0,1.7730985]
[1749930002798,0.26769921,105050.0,105040.0,2.1530985]
[1749930003505,0.26769921,105050.0,105040.0,1.52021622]
[1749930003805,0.52058149,105050.0,105040.0,0.68895749]
[1749930004008,0.52058149,105050.0,105040.0,1.66111749]
[1749930004206,0.26769921,105050.0,105040.0,1.66111749]
[1749930005909,0.26769921,105050.0,105040.0,1.66187749]
[1749930006208,0.26769921,105050.0,105040.0,0.68895749]
[1749930006408,0.26769921,105050.0,105040.0,1.66187749]
[1749930007104,0.26769921,105050.0,105040.0,0.68895749]
[1749930007303,0.26769921,105050.0,105040.0,1.66191749]
[1749930008812,0.07738261,105050.0,105040.0,1.9591385]
[1749930009309,0.26769911,105050.0,105040.0,1.9591385]
[1749930012414,0.26769911,105050.0,105040.0,1.70625622]
[1749930015807,0.26769911,105050.0,105040.0,1.76533396]
[1749930016007,0.26769911,105050.0,105040.0,1.70625622]
[1749930016615,0.26769911,105050.0,105040.0,1.76533396]
[1749930017416,0.07738261,105050.0,105040.0,2.35821624]
[1749930017715,0.001,105050.0,105040.0,2.35821624]
[1749930017906,0.001,105050.0,105040.0,2.31387751]
[1749930019416,0.1913165,105050.0,105040.0,2.31387751]
[1749930019614,0.001,105050.0,105040.0,1.97387751]
[1749930022017,0.001,105050.0,105040.0,2.33387751]
[1749930022618,0.001,105050.0,105040.0,2.42254498]
[1749930023114,0.001,105050.0,105040.0,2.06254498]
[1749930023314,0.001,105050.0,105040.0,2.44254498]
[1749930026621,0.001,105050.0,105040.0,2.06254498]
[1749930028118,0.001,105050.0,105040.0,2.41254498]
[1749930028318,0.001,105050.0,105040.0,1.8096627]
[1749930028518,0.001,105050.0,105040.0,2.40254498]
[1749930033416,0.001,105050.0,105040.0,2.34346724]
[1749930035926,0.001,105050.0,105040.0,2.34546724]
[1749930036726,0.26695238,105060.0,105050.0,0.1903166]
[1749930036919,0.26506958,105060.0,105050.0,1.36349376]
[1749930038327,0.26506958,105060.0,105050.0,1.04349376]
[1749930039326,0.26506958,105060.0,105050.0,0.79061148]
[1749930039526,0.29596958,105060.0,105050.0,0.79061148]
[1749930040027,0.87885186,105060.0,105050.0,0.33721148]
[1749930040329,1.30315186,105060.0,105050.0,0.27808938]
[1749930040524,1.02315186,105060.0,105050.0,0.27808938]
[1749930041030,1.11240717,105060.0,105050.0,0.23374781]
[1749930041825,0.75160717,105060.0,105050.0,0.23372991]
[1749930042030,1.11240717,105060.0,105050.0,0.2780812]
[1749930042234,1.11640717,105060.0,105050.0,0.27808431]
[1749930042924,0.75560717,105060.0,105050.0,0.27808431]
[1749930043118,0.50272489,105060.0,105050.0,0.27808431]
[1749930043323,1.11640717,105060.0,105050.0,0.27808431]
[1749930046327,1.11640717,105060.0,105050.0,0.23373142]
[1749930050233,0.75560717,105060.0,105050.0,0.23373142]
[1749930050435,1.11640717,105060.0,105050.0,0.23373142]
[1749930051029,1.02715186,105060.0,105050.0,0.27808431]
[1749930052038,0.66635186,105060.0,105050.0,0.27808431]
[1749930052837,0.41346958,105060.0,105050.0,0.27808431]
[1749930054232,0.41346958,105060.0,105050.0,0.46388431]
[1749930058142,0.41346958,105060.0,105050.0,0.27808431]
[1749930059151,0.66635186,105060.0,105050.0,0.27808431]
[1749930061254,0.41346958,105060.0,105050.0,0.27808431]
[1749930062852,0.22317068,105060.0,105050.0,0.27808431]
[1749930063156,0.07877068,105060.0,105050.0,1.55438869]
[1749930063458,0.07877068,105060.0,105050.0,1.58591423]
[1749930063657,0.004,105060.0,105050.0,1.91463663]
[1749930063857,0.004,105060.0,105050.0,1.85551453]
[1749930064356,0.001,105060.0,105050.0,1.85551453]
[1749930064657,0.00977175,105070.0,105060.0,0.1902984]
[1749930064857,0.00977175,105070.0,105060.0,1.575402]
[1749930065058,0.00977175,105070.0,105060.0,2.48497145]
[1749930065261,0.00977175,105070.0,105060.0,2.16891295]
[1749930065558,0.00977175,105070.0,105060.0,1.57615581]
[1749930065858,0.01077175,105070.0,105060.0,2.17891295]
[1749930066059,0.01377175,105070.0,105060.0,2.17891295]
[1749930066559,0.07993952,105070.0,105060.0,2.13449735]
[1749930066750,0.00414324,105070.0,105060.0,2.13449735]
[1749930066952,0.00414324,105070.0,105060.0,1.59118688]
[1749930067254,0.00414324,105070.0,105060.0,2.13394402]
[1749930068054,0.00414324,105070.0,105060.0,1.12938402]
[1749930068260,0.00414324,105070.0,105060.0,1.81418402]
[1749930068560,0.00414324,105070.0,105060.0,2.17418402]
[1749930069160,0.00414324,105070.0,105060.0,1.87328442]
[1749930069361,0.00414324,105070.0,105060.0,2.24328442]
[1749930069854,0.00414324,105070.0,105060.0,2.42992442]
[1749930070047,0.00414324,105070.0,105060.0,2.43067823]
[1749930070252,0.00414324,105070.0,105060.0,2.38059823]
[1749930071059,0.00414324,105070.0,105060.0,2.29193076]
[1749930071258,0.00414324,105070.0,105060.0,2.38059823]
[1749930071560,0.00414324,105070.0,105060.0,2.29193076]
[1749930073658,0.00414324,105070.0,105060.0,2.33621013]
[1749930073858,0.19442384,105070.0,105060.0,1.75961362]
[1749930074161,0.19442384,105070.0,105060.0,0.74781362]
[1749930074360,0.19442384,105070.0,105060.0,1.7635777]
[1749930074560,0.19442384,105070.0,105060.0,1.7636577]
[1749930074756,0.00414324,105070.0,105060.0,1.7636577]
[1749930075464,0.19442374,105070.0,105060.0,1.7636577]
[1749930075665,0.19442374,105070.0,105060.0,0.74781362]
[1749930075865,0.19442374,105070.0,105060.0,1.71913362]
[1749930076061,0.00414324,105070.0,105060.0,0.74781362]
[1749930076366,0.00414324,105070.0,105060.0,1.71913362]
[1749930076565,0.00414324,105070.0,105060.0,2.31189076]
[1749930076759,0.00414324,105070.0,105060.0,1.71913362]
[1749930077160,0.00414324,105070.0,105060.0,2.09913362]
[1749930077855,0.00414324,105070.0,105060.0,2.35189076]
[1749930079166,0.00414324,105070.0,105060.0,1.97189076]
[1749930079765,0.00414324,105070.0,105060.0,1.00057076]
[1749930080068,0.00414324,105070.0,105060.0,1.97337076]
[1749930080257,0.00314324,105070.0,105060.0,1.97537076]
[1749930080461,0.00014324,105070.0,105060.0,1.97537076]
[1749930080661,0.00014324,105070.0,105060.0,1.97737076]
[1749930080961,0.00014324,105070.0,105060.0,1.97537076]
[1749930081670,0.00014324,105070.0,105060.0,1.97337076]
[1749930083469,0.00014324,105070.0,105060.0,1.72061362]
[1749930083668,0.00014324,105070.0,105060.0,1.97337076]
[1749930084463,0.00014324,105070.0,105060.0,1.72061362]
[1749930084663,0.00014324,105070.0,105060.0,1.97337076]
[1749930085263,0.79318108,105070.0,105060.0,0.27803258]
[1749930085469,0.53918108,105070.0,105060.0,0.27803258]
[1749930085771,1.04446108,105070.0,105060.0,0.27803258]
[1749930086359,1.04446108,105070.0,105060.0,0.23371322]
[1749930086566,1.04546108,105070.0,105060.0,0.23371322]
[1749930086867,1.04846108,105070.0,105060.0,0.23371322]
[1749930087872,1.05046108,105070.0,105060.0,0.23371322]
[1749930088574,1.05246108,105070.0,105060.0,0.23371322]
[1749930090466,1.05246108,105070.0,105060.0,0.19180602]
[1749930090764,1.05246108,105070.0,105060.0,0.23373918]
[1749930094271,1.05659943,105070.0,105060.0,0.23373918]
[1749930095172,1.41739943,105070.0,105060.0,0.23373918]
[1749930098171,1.50665474,105070.0,105060.0,0.23373918]
[1749930100678,2.29177474,105070.0,105060.0,0.23373918]
[1749930101079,2.20251943,105070.0,105060.0,0.23373918]
[1749930106377,1.94976229,105070.0,105060.0,0.23373918]
[1749930106582,2.20251943,105070.0,105060.0,0.23373918]
[1749930106877,1.84171943,105070.0,105060.0,0.23373918]
[1749930107182,2.20251943,105070.0,105060.0,0.23373918]
[1749930108682,0.87131943,105070.0,105060.0,0.23373918]
[1749930108877,1.49392229,105070.0,105060.0,0.67222068]
[1749930109182,1.49392229,105070.0,105060.0,0.73562068]
[1749930109777,1.49192229,105070.0,105060.0,0.73562068]
[1749930109977,1.48692229,105070.0,105060.0,0.73562068]
[1749930110577,1.48592229,105070.0,105060.0,0.73562068]
[1749930112278,0.51456229,105070.0,105060.0,0.73562068]
[1749930112487,1.48540229,105070.0,105060.0,0.73562068]
[1749930114488,0.70028229,105070.0,105060.0,0.73562068]
[1749930114686,0.70028229,105070.0,105060.0,0.79472108]
[1749930116288,0.51456229,105070.0,105060.0,0.79472108]
[1749930116689,0.38028219,105070.0,105060.0,0.79472108]
[1749930118485,0.19456219,105070.0,105060.0,0.79472108]
[1749930121495,0.19456219,105070.0,105060.0,1.04747822]
[1749930122093,0.19456219,105070.0,105060.0,0.79472108]
[1749930122291,0.00428159,105070.0,105060.0,1.04747822]
[1749930122596,0.00428159,105070.0,105060.0,2.18730379]
[1749930123587,0.00428159,105070.0,105060.0,1.40466379]
[1749930123893,0.00428159,105070.0,105060.0,2.37502379]
[1749930124696,0.00428159,105070.0,105060.0,1.40466379]
[1749930124993,0.00428159,105070.0,105060.0,2.00718379]
[1749930125194,0.19456219,105070.0,105060.0,2.42637734]
[1749930125395,0.00428159,105070.0,105060.0,2.42637734]
[1749930128898,0.00428159,105070.0,105060.0,2.06637734]
[1749930129103,0.00428159,105070.0,105060.0,2.40637734]
[1749930129502,0.44731923,105070.0,105060.0,0.75443273]
[1749930129703,0.81731923,105070.0,105060.0,0.21631411]
[1749930129907,1.42729923,105070.0,105060.0,0.28211916]
[1749930131307,1.43229923,105070.0,105060.0,0.28011916]
[1749930131495,1.43229923,105070.0,105060.0,0.27811916]
[1749930131702,1.43529923,105070.0,105060.0,0.27811916]
[1749930132200,1.43529923,105070.0,105060.0,0.23373938]
[1749930134310,1.25001923,105070.0,105060.0,0.23373938]
[1749930134505,2.21989923,105070.0,105060.0,0.23373938]
[1749930138510,2.21989923,105070.0,105060.0,0.04344078]
[1749930138716,0.1903169,105050.0,105040.0,0.2854857]
[1749930138911,1.32066166,105050.0,105040.0,0.2360194]
[1749930139108,2.16980166,105050.0,105040.0,0.2360194]
[1749930139509,2.17943608,105050.0,105040.0,0.2360194]
[1749930151829,2.17943608,105050.0,105040.0,0.1903206]
[1749930159436,2.26854465,105050.0,105040.0,0.1903206]
[1749930163434,2.26854465,105050.0,105040.0,0.23195103]
[1749930163635,2.30104465,105050.0,105040.0,0.23195103]
[1749930164334,1.94024465,105050.0,105040.0,0.23195103]
[1749930165338,1.90790465,105050.0,105040.0,0.23195103]
[1749930165538,1.90790465,105050.0,105040.0,0.32525103]
[1749930166239,1.65514751,105050.0,105040.0,0.32525103]
[1749930166440,2.26870465,105050.0,105040.0,0.32525103]
[1749930172439,1.40029061,105050.0,105040.0,0.93880817]
[1749930172641,0.10025061,105050.0,105040.0,1.31312287]
[1749930172840,0.00150762,105050.0,105040.0,1.37231642]
[1749930173236,0.19182432,105050.0,105040.0,1.40403239]
[1749930173441,0.00150762,105050.0,105040.0,1.58935239]
[1749930173638,0.00150762,105050.0,105040.0,1.54503769]
[1749930174038,0.00150762,105050.0,105040.0,1.63370516]
[1749930174544,0.00150762,105050.0,105040.0,1.54503769]
[1749930175346,0.00150762,105050.0,105040.0,1.55779601]
[1749930175540,0.00150762,105050.0,105040.0,1.88806993]
[1749930175846,0.00150762,105050.0,105040.0,1.89776005]
[1749930176645,0.00150762,105050.0,105040.0,2.72052005]
[1749930177044,0.00150762,105050.0,105040.0,2.72452005]
[1749930178147,2e-08,105050.0,105040.0,2.88868402]
[1749930178337,2e-08,105050.0,105040.0,2.97731995]
[1749930179245,2e-08,105050.0,105040.0,2.72448851]
[1749930181841,2e-08,105050.0,105040.0,3.03639666]
[1749930182041,2e-08,105050.0,105040.0,2.97731995]
[1749930182246,2e-08,105050.0,105040.0,3.00648239]
[1749930182648,0.00014324,105070.0,105060.0,0.20876683]
[1749930182846,0.2378066,105090.0,105080.0,0.1902623]
[1749930183147,1.06731509,105100.0,105090.0,0.1902442]
[1749930183346,1.31820652,105100.0,105090.0,0.19099801]
[1749930184848,1.40555469,105100.0,105090.0,0.19099801]
[1749930185638,1.41155469,105100.0,105090.0,0.19099801]
[1749930187152,1.15872325,105100.0,105090.0,0.19099801]
[1749930187349,1.41155469,105100.0,105090.0,0.19099801]
[1749930189550,1.77235469,105100.0,105090.0,0.00075381]
[1749930189853,2.55675469,105100.0,105090.0,0.00075381]
[1749930195555,2.64586326,105100.0,105090.0,0.00075381]
[1749930196853,0.1902442,105090.0,105080.0,0.00014324]
[1749930197153,1.18637564,105090.0,105080.0,0.19040544]
[1749930197355,1.18637564,105090.0,105080.0,0.00014324]
[1749930198056,2.15585564,105090.0,105080.0,0.19040574]
[1749930198354,2.15685564,105090.0,105080.0,0.19040574]
[1749930198552,2.15685564,105090.0,105080.0,0.00014324]
[1749930199151,2.24796421,105090.0,105080.0,0.00014324]
[1749930199351,2.25392421,105090.0,105080.0,0.00014324]
[1749930200552,2.25392421,105090.0,105080.0,0.19040574]